bitfinex-derivatives/quotes_SOLF0:USTF0_20260218
["timestamp","ask_amount","ask_price","bid_price","bid_amount"]
[1771440498499,41.62688935,81.509,81.434,39.3633327]
[1771440499007,41.62688935,81.491,81.44,11.0559]
[1771440499502,41.62688935,81.509,81.448,11.0549]
[1771440500607,11.0492,81.491,81.436,11.0565]
[1771440501000,41.62688935,81.49,81.416,39.3633327]
[1771440501207,0.07764248,81.472,81.416,39.3633327]
[1771440501408,0.07764248,81.472,81.421,39.3633327]
[1771440501804,41.62688935,81.49,81.453,11.0542]
[1771440502003,41.62688935,81.515,81.453,11.0542]
[1771440502404,41.62688935,81.512,81.452,11.0543]
[1771440503412,41.62688935,81.512,81.438,39.3633327]
[1771440503413,41.62688935,81.512,81.46,11.0532]
[1771440503811,0.07761606,81.49,81.46,11.0532]
[1771440504313,41.70450541,81.49,81.421,39.3633327]
[1771440504912,49.90838343,81.49,81.421,39.3633327]
[1771440505113,49.90838343,81.49,81.438,11.0562]
[1771440505418,49.90838343,81.49,81.421,39.3633327]
[1771440506215,41.62688935,81.489,81.405,39.3633327]
[1771440506514,41.62688935,81.488,81.405,39.3633327]
[1771440507114,41.62688935,81.467,81.37,85.62149408]
[1771440507324,41.62688935,81.465,81.376,39.3633327]
[1771440507616,11.0556,81.443,81.379,39.3633327]
[1771440508221,41.62688935,81.442,81.379,39.3633327]
[1771440509514,8.28149408,81.46,81.379,39.3633327]
[1771440509713,41.62688935,81.46,81.379,39.3633327]
[1771440510112,41.62688935,81.46,81.381,39.3633327]
[1771440510419,11.0539,81.456,81.395,11.062]
[1771440511223,11.0539,81.456,81.395,50.4253327]
[1771440511927,41.62688935,81.479,81.42,39.3633327]
[1771440512618,11.0512,81.476,81.423,39.3633327]
[1771440513423,41.62688935,81.467,81.405,39.3633327]
[1771440513929,41.62688935,81.467,81.418,11.0589]
[1771440514322,41.62688935,81.467,81.405,39.3633327]
[1771440515628,41.62688935,81.467,81.38,8.28149408]
[1771440515927,8.28149408,81.48,81.406,39.3633327]
[1771440516118,11.0518,81.472,81.406,39.3633327]
[1771440516519,41.62688935,81.471,81.389,39.3633327]
[1771440516724,11.0552,81.446,81.397,11.0618]
[1771440516934,41.62688935,81.471,81.397,39.3633327]
[1771440517226,41.62688935,81.471,81.424,11.0582]
[1771440517528,41.62688935,81.488,81.425,39.3633327]
[1771440517732,41.62688935,81.488,81.401,39.3633327]
[1771440517937,41.62688935,81.466,81.414,11.0595]
[1771440518227,41.62688935,81.466,81.401,39.3633327]
[1771440519527,11.0538,81.456,81.41,11.06]
[1771440519728,41.62688935,81.466,81.41,11.06]
[1771440520418,41.62688935,81.466,81.401,39.3633327]
[1771440521727,22.0984,81.491,81.401,39.3633327]
[1771440521728,41.62688935,81.465,81.401,39.3633327]
[1771440522031,0.07773394,81.442,81.401,39.3633327]
[1771440522434,41.70462329,81.442,81.375,5.16129032]
[1771440522630,41.62688935,81.439,81.375,5.16129032]
[1771440522825,41.62688935,81.439,81.375,44.52462302]
[1771440523727,11.0559,81.441,81.387,39.3633327]
[1771440524729,11.0559,81.441,81.394,11.0622]
[1771440525428,40.64566397,81.433,81.375,5.16129032]
[1771440525631,40.64566397,81.433,81.375,43.88234263]
[1771440526030,11.0586,81.421,81.375,43.88234263]
[1771440527738,11.0597,81.414,81.375,5.16129032]
[1771440528733,11.0586,81.421,81.375,43.88234263]
[1771440528935,48.92715805,81.44,81.375,43.88234263]
[1771440530535,40.64566397,81.438,81.375,5.16129032]
[1771440531234,40.64566397,81.419,81.375,5.16129032]
[1771440531634,40.64566397,81.405,81.375,9.032e-05]
[1771440532634,40.64566397,81.441,81.375,38.72114263]
[1771440533537,11.0571,81.432,81.377,38.72105231]
[1771440533733,40.64566397,81.441,81.377,38.72105231]
[1771440534832,11.0549,81.449,81.391,38.72105231]
[1771440535741,11.0549,81.449,81.394,11.0622]
[1771440536127,11.0549,81.449,81.394,49.78325231]
[1771440536637,11.0558,81.442,81.394,38.72105231]
[1771440536838,78.18,81.463,81.375,9.032e-05]
[1771440536839,40.64566397,81.441,81.375,9.032e-05]
[1771440537140,40.64566397,81.441,81.394,11.0621]
[1771440537340,11.0546,81.451,81.395,38.72105231]
[1771440537736,8.27764618,81.47,81.375,9.032e-05]
[1771440537737,11.0531,81.462,81.402,42.33991712]
[1771440537941,41.15052496,81.473,81.402,42.33991712]
[1771440538845,11.0519,81.471,81.415,11.0594]
[1771440539548,11.0519,81.471,81.416,42.33991712]
[1771440539746,41.15052496,81.473,81.419,42.33991712]
[1771440540448,41.15052496,81.455,81.381,42.33991712]
[1771440540645,41.15052496,81.454,81.381,42.33991712]
[1771440540846,8.27764618,81.47,81.381,42.33991712]
[1771440540847,41.15052496,81.442,81.386,11.0633]
[1771440541244,11.057,81.433,81.381,42.33991712]
[1771440541550,41.15052496,81.458,81.381,42.33991712]
[1771440542046,41.15052496,81.457,81.395,11.0621]
[1771440542456,41.15052496,81.457,81.381,42.33991712]
[1771440542457,41.15052496,81.457,81.385,11.0633]
[1771440542642,41.15052496,81.455,81.375,9.032e-05]
[1771440542834,41.15052496,81.449,81.375,9.032e-05]
[1771440543032,11.0578,81.427,81.376,11.0647]
[1771440543238,41.15052496,81.426,81.375,9.032e-05]
[1771440544437,11.0593,81.417,81.375,9.032e-05]
[1771440544742,52.20982496,81.417,81.375,9.032e-05]
[1771440544943,41.15052496,81.416,81.375,9.032e-05]
[1771440546151,41.15052496,81.406,81.375,9.032e-05]
[1771440546943,11.0616,81.399,81.375,9.032e-05]
[1771440547642,0.07753303,81.395,81.375,9.032e-05]
[1771440548646,9.61561533,81.443,81.375,9.032e-05]
[1771440548838,11.056,81.441,81.385,11.0634]
[1771440549038,41.15052496,81.44,81.385,11.0634]
[1771440549847,52.20692496,81.437,81.381,42.33991712]
[1771440550747,41.15052496,81.422,81.375,9.032e-05]
[1771440551547,11.059,81.418,81.375,9.032e-05]
[1771440552051,52.20952496,81.418,81.375,9.032e-05]
[1771440552549,11.0602,81.41,81.375,9.032e-05]
[1771440552750,41.15052496,81.409,81.375,9.032e-05]
[1771440553455,82.0,81.424,81.375,9.032e-05]
[1771440553848,82.0,81.424,81.39,11.0627]
[1771440554246,82.0,81.424,81.386,42.33991712]
[1771440555150,82.0,81.424,81.388,11.063]
[1771440555351,82.0,81.424,81.386,42.33991712]
[1771440555550,11.0567,81.435,81.386,42.33991712]
[1771440555756,11.0579,81.426,81.387,11.0632]
[1771440556449,41.30594194,81.438,81.386,42.33991712]
[1771440556848,41.30594194,81.436,81.386,42.33991712]
[1771440557248,41.30594194,81.434,81.386,42.33991712]
[1771440557454,41.30594194,81.432,81.38,11.0641]
[1771440557652,41.30594194,81.432,81.386,11.0633]
[1771440558445,78.8,81.433,81.375,9.032e-05]
[1771440558446,78.8,81.433,81.392,11.0625]
[1771440558652,82.0,81.432,81.392,11.0625]
[1771440559553,82.0,81.432,81.398,11.0617]
[1771440559755,82.0,81.432,81.383,38.59197973]
[1771440560152,123.30594194,81.432,81.383,38.59197973]
[1771440560455,41.30594194,81.431,81.399,0.07763858]
[1771440561848,11.0544,81.452,81.399,0.07763858]
[1771440561849,82.0,81.443,81.403,11.061]
[1771440562048,82.0,81.443,81.4,38.59197973]
[1771440564055,41.30594194,81.442,81.396,11.0619]
[1771440564257,41.30594194,81.44,81.396,11.0619]
[1771440565453,41.30594194,81.44,81.402,11.0611]
[1771440565857,41.30594194,81.44,81.381,38.59197973]
[1771440566057,41.30594194,81.44,81.413,0.07815133]
[1771440566855,52.36194194,81.44,81.413,0.07815133]
[1771440567062,41.30594194,81.438,81.413,0.07815133]
[1771440567264,11.0569,81.434,81.413,0.07815133]
[1771440568262,41.30594194,81.438,81.413,0.07815133]
[1771440568658,80.4,81.437,81.413,0.07815133]
[1771440569162,41.30594194,81.438,81.413,0.07815133]
[1771440569365,80.52,81.437,81.413,0.07815133]
[1771440571365,41.30594194,81.438,81.413,0.07815133]
[1771440571566,80.84,81.437,81.413,0.07815133]
[1771440572365,82.0,81.443,81.413,0.07815133]
[1771440572554,81.0,81.442,81.413,0.07815133]
[1771440572753,82.0,81.443,81.413,0.07815133]
[1771440572961,81.04,81.442,81.413,0.07815133]
[1771440573163,82.0,81.443,81.413,0.07815133]
[1771440573364,81.08,81.442,81.413,0.07815133]
[1771440573564,81.14,81.441,81.413,0.07815133]
[1771440574163,82.0,81.443,81.413,0.07815133]
[1771440574368,81.24,81.442,81.413,0.07815133]
[1771440577071,41.30594194,81.441,81.379,38.59197973]
[1771440577371,41.30594194,81.439,81.379,38.59197973]
[1771440577564,41.30594194,81.437,81.379,38.59197973]
[1771440577764,41.30594194,81.435,81.379,38.59197973]
[1771440577966,41.30594194,81.431,81.388,11.0629]
[1771440578166,41.30594194,81.431,81.379,38.59197973]
[1771440578365,41.30594194,81.429,81.379,38.59197973]
[1771440578569,41.30594194,81.427,81.379,38.59197973]
[1771440579371,41.30594194,81.427,81.381,11.0639]
[1771440581172,41.30594194,81.419,81.352,12.33]
[1771440581368,41.30594194,81.399,81.318,38.59197973]
[1771440581567,41.30594194,81.399,81.29,8.27764618]
[1771440581568,91.80265771,81.398,81.326,38.59197973]
[1771440581763,41.30594194,81.396,81.326,38.59197973]
[1771440582073,41.30594194,81.394,81.326,38.59197973]
[1771440582273,123.40594194,81.393,81.326,38.59197973]
[1771440582472,41.30594194,81.392,81.326,38.59197973]
[1771440583273,41.30594194,81.392,81.337,11.07]
[1771440583472,41.30594194,81.392,81.337,49.66197973]
[1771440584381,41.30594194,81.392,81.341,11.0694]
[1771440584571,41.30594194,81.392,81.338,38.59197973]
[1771440584777,51.57406173,81.448,81.29,8.27764618]
[1771440584778,41.30594194,81.379,81.326,38.59197973]
[1771440585493,40.24095183,81.395,81.326,38.59197973]
[1771440585779,82.2,81.384,81.336,11.0701]
[1771440585987,40.24095183,81.383,81.326,38.59197973]
[1771440586783,40.24095183,81.383,81.327,53.06925018]
[1771440588090,51.30485183,81.382,81.327,53.06925018]
[1771440588581,51.30485183,81.382,81.291,22.1525]
[1771440588582,51.30485183,81.382,81.33,11.0709]
[1771440588986,40.24095183,81.381,81.328,41.99795018]
[1771440589987,40.24095183,81.381,81.297,77.38]
[1771440589988,40.24095183,81.381,81.331,41.99795018]
[1771440591288,82.0,81.383,81.333,41.99795018]
[1771440591879,40.24095183,81.395,81.3,8.27764618]
[1771440592079,40.24095183,81.393,81.344,41.99795018]
[1771440592385,82.0,81.396,81.357,11.0673]
[1771440592981,0.07761067,81.385,81.357,11.0673]
[1771440594583,0.07761067,81.385,81.344,41.99795018]
[1771440595387,0.07761067,81.385,81.362,11.0665]
[1771440595585,82.0,81.415,81.358,41.99795018]
[1771440595782,40.24095183,81.423,81.358,41.99795018]
[1771440595783,82.0,81.422,81.358,41.99795018]
[1771440595988,83.34,81.414,81.358,41.99795018]
[1771440596285,83.36,81.413,81.358,41.99795018]
[1771440596685,83.36,81.413,81.369,11.0655]
[1771440596893,83.36,81.413,81.358,41.99795018]
[1771440597186,83.42,81.424,81.358,41.99795018]
[1771440597387,83.42,81.424,81.35,8.28117173]
[1771440597388,83.42,81.424,81.392,11.0624]
[1771440597585,40.24095183,81.435,81.381,41.99795018]
[1771440597791,83.42,81.434,81.381,41.99795018]
[1771440598185,40.24095183,81.435,81.381,41.99795018]
[1771440598384,123.70095183,81.435,81.381,41.99795018]
[1771440598792,40.24095183,81.435,81.397,11.0618]
[1771440598985,83.48,81.434,81.397,11.0618]
[1771440599386,42.3932727,81.433,81.397,11.0618]
[1771440601197,3.08980404,81.43,81.381,41.99795018]
[1771440601396,3.08980404,81.42,81.381,41.99795018]
[1771440601800,126.0532727,81.429,81.381,41.99795018]
[1771440602003,42.3932727,81.428,81.356,77.38]
[1771440602295,42.3932727,81.399,81.35,44.47494169]
[1771440603394,82.0,81.445,81.32,99.5246]
[1771440603395,45.48307674,81.39,81.333,41.38513765]
[1771440603903,42.3932727,81.39,81.333,41.38513765]
[1771440604096,42.3932727,81.39,81.318,77.38]
[1771440604292,50.67890578,81.39,81.316,41.38513765]
[1771440604494,42.3932727,81.388,81.316,41.38513765]
[1771440604685,42.3932727,81.386,81.316,41.38513765]
[1771440605390,42.3932727,81.386,81.338,11.0698]
[1771440605589,42.3932727,81.386,81.316,41.38513765]
[1771440606199,42.3932727,81.386,81.337,11.07]
[1771440606496,42.3932727,81.384,81.337,11.07]
[1771440606896,42.3932727,81.382,81.327,11.0713]
[1771440607087,42.3932727,81.379,81.298,41.38513765]
[1771440607286,8.28563308,81.38,81.312,41.38513765]
[1771440607287,42.3932727,81.377,81.312,41.38513765]
[1771440607495,42.3932727,81.371,81.321,11.0721]
[1771440607995,42.3932727,81.368,81.312,41.38513765]
[1771440608205,42.3932727,81.359,81.293,41.38513765]
[1771440608492,42.3932727,81.357,81.293,41.38513765]
[1771440608695,42.3932727,81.352,81.294,11.0757]
[1771440609294,42.3932727,81.35,81.293,41.38513765]
[1771440609693,42.3932727,81.348,81.293,41.38513765]
[1771440610094,42.3932727,81.339,81.278,41.38513765]
[1771440610398,42.3932727,81.337,81.278,41.38513765]
[1771440611290,42.3932727,81.335,81.278,41.38513765]
[1771440611490,8.28563308,81.34,81.278,41.38513765]
[1771440611491,42.3932727,81.333,81.278,41.38513765]
[1771440611999,8.28563308,81.34,81.278,41.38513765]
[1771440612000,42.3932727,81.331,81.278,41.38513765]
[1771440612195,8.28563308,81.34,81.278,41.38513765]
[1771440612196,42.3932727,81.329,81.278,41.38513765]
[1771440613500,42.3932727,81.329,81.28,41.38513765]
[1771440614294,8.28563308,81.32,81.263,41.38513765]
[1771440614498,42.3932727,81.318,81.263,41.38513765]
[1771440614999,42.3932727,81.318,81.184,209.4635]
[1771440615000,84.42,81.331,81.276,42.8161883]
[1771440615496,42.56010306,81.336,81.278,42.8161883]
[1771440615698,42.56010306,81.334,81.278,42.8161883]
[1771440616095,42.56010306,81.316,81.258,42.8161883]
[1771440616304,84.5,81.315,81.258,42.8161883]
[1771440616599,42.56010306,81.316,81.258,42.8161883]
[1771440616797,42.56010306,81.339,81.275,47.98382903]
[1771440617001,84.52,81.33,81.275,47.98382903]
[1771440617301,127.08010306,81.33,81.275,47.98382903]
[1771440617894,42.56010306,81.33,81.286,42.8161883]
[1771440618296,42.56010306,81.33,81.287,11.0768]
[1771440618498,127.18010306,81.346,81.288,42.8161883]
[1771440618693,42.56010306,81.361,81.288,42.8161883]
[1771440618902,42.56010306,81.361,81.306,42.8161883]
[1771440619500,11.0649,81.375,81.318,42.8161883]
[1771440619806,84.7,81.375,81.318,42.8161883]
[1771440620000,11.065,81.374,81.319,11.0724]
[1771440620203,42.56010306,81.373,81.302,42.8161883]
[1771440620397,8.28563308,81.39,81.302,42.8161883]
[1771440620398,42.56010306,81.371,81.302,42.8161883]
[1771440620594,42.56010306,81.371,81.275,5.16764073]
[1771440620595,42.56010306,81.336,81.28,11.0777]
[1771440620802,42.56010306,81.329,81.275,5.16764073]
[1771440621003,42.56010306,81.327,81.275,47.98382903]
[1771440621206,11.0704,81.335,81.279,42.8161883]
[1771440621506,84.72,81.338,81.279,42.8161883]
[1771440621907,42.56010306,81.337,81.279,42.8161883]
[1771440622697,42.56010306,81.337,81.288,11.0766]
[1771440623103,42.56010306,81.337,81.3,0.07768271]
[1771440624398,8.28563308,81.35,81.3,0.07768271]
[1771440624706,84.94,81.349,81.3,42.89387101]
[1771440624899,84.94,81.349,81.3,42.8161883]
[1771440625501,42.56010306,81.368,81.29,8.28563308]
[1771440625700,42.56010306,81.366,81.284,42.8161883]
[1771440625899,42.56010306,81.351,81.302,11.0747]
[1771440626094,42.56010306,81.351,81.284,42.8161883]
[1771440626301,82.0,81.367,81.291,42.8161883]
[1771440626499,42.56010306,81.368,81.322,11.0719]
[1771440627101,42.56010306,81.368,81.316,42.8161883]
[1771440628105,42.56010306,81.368,81.299,42.8161883]
[1771440628309,42.56010306,81.366,81.299,42.8161883]
[1771440629810,42.56010306,81.362,81.308,11.0738]
[1771440630111,42.56010306,81.362,81.299,42.8161883]
[1771440630710,42.56010306,81.362,81.314,11.073]
[1771440631806,11.0673,81.358,81.306,11.0741]
[1771440632113,42.56010306,81.357,81.306,11.0741]
[1771440632612,42.56010306,81.357,81.307,42.8161883]
[1771440633201,42.56010306,81.377,81.328,11.0712]
[1771440633602,42.56010306,81.377,81.321,42.8161883]
[1771440634112,42.56010306,81.377,81.344,0.07755323]
[1771440635013,42.56010306,81.394,81.344,0.07755323]
[1771440635512,42.56010306,81.394,81.336,42.8161883]
[1771440636215,42.56010306,81.394,81.347,42.8161883]
[1771440637701,82.0,81.432,81.351,42.8161883]
[1771440637702,42.56010306,81.429,81.351,42.8161883]
[1771440637920,42.56010306,81.427,81.351,42.8161883]
[1771440638213,11.0585,81.422,81.371,11.0653]
[1771440639512,42.56010306,81.423,81.379,11.0642]
[1771440640616,42.56010306,81.422,81.371,11.0654]
[1771440641018,42.56010306,81.422,81.366,42.8161883]
[1771440641213,36.94,81.466,81.277,172.3275]
[1771440641214,42.56010306,81.409,81.311,42.8161883]
[1771440641414,42.56010306,81.409,81.324,42.8161883]
[1771440641616,85.68,81.41,81.375,11.0647]
[1771440642312,85.72,81.419,81.375,11.0647]
[1771440643018,85.72,81.419,81.367,53.8819883]
[1771440643413,42.56010306,81.418,81.367,53.8819883]
[1771440643611,42.56010306,81.425,81.385,11.0634]
[1771440645717,42.56010306,81.425,81.36,8.28563308]
[1771440645718,39.65495557,81.443,81.389,40.64553054]
[1771440645918,86.0,81.442,81.389,40.64553054]
[1771440646513,86.0,81.442,81.408,11.0603]
[1771440646824,86.04,81.45,81.408,11.0603]
[1771440647011,39.65495557,81.459,81.403,40.64553054]
[1771440647216,86.06,81.449,81.403,40.64553054]
[1771440647615,86.06,81.449,81.405,11.0607]
[1771440648318,0.0001,81.435,81.41,51.70553054]
[1771440648721,0.0001,81.435,81.41,11.06]
[1771440649416,0.0001,81.435,81.415,51.70493054]
[1771440649723,0.0001,81.435,81.416,40.64553054]
[1771440650129,0.0001,81.435,81.418,11.0589]
[1771440650420,0.0001,81.435,81.416,40.64553054]
[1771440651214,0.0001,81.435,81.434,11.0568]
[1771440651819,0.0001,81.435,81.34,172.1924]
[1771440652119,39.65505557,81.435,81.371,40.64553054]
[1771440652320,0.0001,81.435,81.371,40.64553054]
[1771440652925,0.0001,81.435,81.39,40.64553054]
[1771440653125,0.0001,81.435,81.37,8.28563308]
[1771440653126,0.0001,81.435,81.375,40.64553054]
[1771440653918,0.0001,81.435,81.381,11.064]
[1771440655026,0.0001,81.435,81.375,40.64553054]
[1771440655027,39.65495557,81.432,81.375,40.64553054]
[1771440655526,39.65495557,81.431,81.375,40.64553054]
[1771440655828,39.65495557,81.431,81.383,11.0637]
[1771440656315,0.0001,81.435,81.384,40.64553054]
[1771440656520,0.0001,81.435,81.397,11.0618]
[1771440657132,0.0001,81.435,81.405,11.0607]
[1771440657824,0.0001,81.435,81.381,40.92278802]
[1771440658028,0.0001,81.435,81.383,40.92278802]
[1771440658418,0.0001,81.435,81.398,40.92278802]
[1771440660232,0.0001,81.435,81.409,11.0602]
[1771440662931,0.0001,81.435,81.401,11.0612]
[1771440663128,0.0001,81.435,81.398,40.92278802]
[1771440663636,0.0001,81.435,81.42,11.0587]
[1771440664234,0.0001,81.435,81.39,40.92278802]
[1771440664529,0.0001,81.435,81.391,40.92278802]
[1771440665732,0.0001,81.435,81.408,11.0602]
[1771440667133,39.70424031,81.431,81.374,40.92278802]
[1771440668739,50.76154031,81.431,81.384,11.0636]
[1771440668940,0.0001,81.435,81.374,40.92278802]
[1771440668941,39.70424031,81.43,81.374,40.92278802]
[1771440670941,39.70424031,81.43,81.381,11.064]
[1771440672247,11.0576,81.429,81.381,11.064]
[1771440672452,39.70424031,81.428,81.358,40.92278802]
[1771440673151,39.70424031,81.427,81.372,11.0652]
[1771440673353,39.70424031,81.427,81.358,40.92278802]
[1771440674242,39.70424031,81.427,81.379,11.0642]
[1771440674848,36.85995521,81.419,81.371,11.0653]
[1771440675148,36.85995521,81.419,81.358,40.92278802]
[1771440675349,36.85995521,81.419,81.378,11.0644]
[1771440675851,36.85995521,81.419,81.358,40.92278802]
[1771440676244,36.85995521,81.419,81.376,11.0646]
[1771440676448,118.85995521,81.434,81.376,39.94403289]
[1771440676746,36.85995521,81.434,81.376,39.94403289]
[1771440678450,82.0,81.456,81.403,39.94403289]
[1771440678649,36.85995521,81.468,81.403,39.94403289]
[1771440679254,36.85995521,81.462,81.417,11.059]
[1771440679559,36.85995521,81.477,81.425,11.0579]
[1771440679767,36.85995521,81.459,81.393,77.36]
[1771440680058,3.08943072,81.44,81.385,39.94403289]
[1771440680358,3.08943072,81.44,81.398,11.0616]
[1771440680562,39.94938593,81.44,81.398,11.0616]
[1771440681057,11.0569,81.434,81.391,11.0626]
[1771440681264,39.94938593,81.44,81.391,11.0626]
[1771440681265,3.08943072,81.43,81.391,11.0626]
[1771440681559,3.08943072,81.42,81.364,39.94403289]
[1771440681761,36.85995521,81.43,81.363,77.36]
[1771440681762,39.94938593,81.43,81.371,39.94403289]
[1771440682059,3.08943072,81.42,81.384,11.0636]
[1771440682753,3.08943072,81.41,81.377,11.0645]
[1771440682958,3.08943072,81.41,81.356,39.94403289]
[1771440683364,3.08943072,81.41,81.376,11.0646]
[1771440683961,39.94938593,81.4,81.341,39.94403289]
[1771440684354,3.08943072,81.39,81.351,11.068]
[1771440684859,3.08943072,81.38,81.341,39.94403289]
[1771440685261,3.08943072,81.38,81.342,11.0692]
[1771440685660,36.85995521,81.386,81.341,39.94403289]
[1771440686061,36.85995521,81.386,81.348,11.0684]
[1771440687154,36.85995521,81.386,81.356,11.0674]
[1771440688056,36.85995521,81.386,81.341,39.94403289]
[1771440688057,36.85995521,81.386,81.347,11.0686]
[1771440689267,36.85995521,81.386,81.341,39.94403289]
[1771440690564,36.85995521,81.386,81.342,11.0693]
[1771440691157,85.3,81.409,81.35,39.94403289]
[1771440691158,36.85995521,81.4,81.35,39.94403289]
[1771440692056,36.85995521,81.4,81.324,39.94403289]
[1771440692255,36.85995521,81.38,81.324,39.94403289]
[1771440692458,8.28620883,81.39,81.3,8.28620883]
[1771440692459,36.85995521,81.378,81.301,39.94403289]
[1771440693054,36.85995521,81.378,81.3,8.28620883]
[1771440693055,36.85995521,81.378,81.327,11.0714]
[1771440693260,36.85995521,81.378,81.328,39.94403289]
[1771440694159,36.85995521,81.395,81.284,22.1545]
[1771440694357,36.85995521,81.389,81.301,39.94403289]
[1771440695058,8.28620883,81.41,81.285,77.4]
[1771440695059,36.85995521,81.404,81.335,39.94403289]
[1771440696057,11.0623,81.394,81.335,39.94403289]
[1771440696458,36.85995521,81.393,81.335,39.94403289]
[1771440696854,36.85995521,81.393,81.351,11.0681]
[1771440698359,85.26,81.405,81.355,11.0675]
[1771440698360,11.0611,81.403,81.355,11.0675]
[1771440698557,11.0611,81.403,81.352,39.94403289]
[1771440698558,36.85995521,81.407,81.352,39.94403289]
[1771440698967,36.85995521,81.433,81.365,39.94403289]
[1771440699667,36.85995521,81.433,81.372,39.94403289]
[1771440700364,36.85995521,81.431,81.374,11.0649]
[1771440700553,36.85995521,81.431,81.374,51.00893289]
[1771440700955,85.36,81.436,81.365,11.0661]
[1771440700956,36.85995521,81.429,81.365,11.0661]
[1771440701161,36.85995521,81.427,81.365,11.0661]
[1771440701861,36.85995521,81.427,81.373,11.065]
[1771440702063,36.85995521,81.427,81.348,39.94403289]
[1771440702261,36.85995521,81.413,81.357,11.0672]
[1771440702560,8.28620883,81.43,81.348,39.94403289]
[1771440702561,36.85995521,81.411,81.348,39.94403289]
[1771440702760,36.85995521,81.409,81.311,39.94403289]
[1771440703060,36.85995521,81.407,81.311,39.94403289]
[1771440703570,36.85995521,81.405,81.311,39.94403289]
[1771440703766,36.85995521,81.392,81.311,39.94403289]
[1771440704371,36.85995521,81.39,81.328,39.94403289]
[1771440705269,36.85995521,81.39,81.342,11.0692]
[1771440705565,36.85995521,81.39,81.328,39.94403289]
[1771440706360,36.85995521,81.39,81.337,11.0699]
[1771440706867,36.85995521,81.39,81.31,8.28620883]
[1771440706868,36.85995521,81.39,81.345,11.0689]
[1771440707175,36.85995521,81.39,81.338,38.47656393]
[1771440707575,36.85995521,81.39,81.345,11.0689]
[1771440708267,85.54,81.398,81.353,11.0677]
[1771440708466,85.54,81.398,81.338,38.47656393]
[1771440709266,118.96043657,81.406,81.355,11.0675]
[1771440709472,36.96043657,81.405,81.355,11.0675]
[1771440710071,36.96043657,81.405,81.362,11.0665]
[1771440710771,36.96043657,81.405,81.355,11.0676]
[1771440711170,36.96043657,81.405,81.352,38.47656393]
[1771440712171,36.96043657,81.405,81.362,11.0666]
[1771440713177,36.96043657,81.405,81.352,11.0679]
[1771440713378,36.96043657,81.404,81.337,38.47656393]
[1771440713579,36.96043657,81.402,81.337,38.47656393]
[1771440714672,36.96043657,81.402,81.359,11.067]
[1771440714877,36.96043657,81.4,81.359,11.067]
[1771440716376,36.96043657,81.4,81.337,38.47656393]
[1771440716578,36.96043657,81.398,81.311,38.47656393]
[1771440716777,36.96043657,81.396,81.311,38.47656393]
[1771440717180,36.96043657,81.392,81.348,11.0684]
[1771440717376,36.44966609,81.39,81.348,11.0684]
[1771440717580,36.44966609,81.39,81.325,37.20438728]
[1771440718375,36.44966609,81.388,81.325,37.20438728]
[1771440718678,36.44966609,81.381,81.325,37.20438728]
[1771440719377,36.44966609,81.379,81.339,11.0697]
[1771440720575,86.42,81.387,81.347,11.0686]
[1771440720770,86.44,81.388,81.347,11.0686]
[1771440720976,36.44966609,81.417,81.348,37.20438728]
[1771440721175,36.44966609,81.417,81.313,77.4]
[1771440721176,36.44966609,81.415,81.283,30.57637365]
[1771440721385,82.0,81.434,81.219,76.51387097]
[1771440721386,172.1609,81.356,81.219,76.51387097]
[1771440721576,8.2886851,81.29,81.219,76.51387097]
[1771440721878,8.2886851,81.3,81.202,76.51387097]
[1771440722182,8.2886851,81.23,81.152,76.51176808]
[1771440722382,86.48,81.229,81.169,76.51176808]
[1771440722577,11.0853,81.226,81.169,76.51176808]
[1771440722777,86.48,81.229,81.169,76.51176808]
[1771440722978,86.48,81.229,81.175,3.03400678]
[1771440723487,86.52,81.228,81.175,81.87902091]
[1771440723681,86.54,81.232,81.175,81.87902091]
[1771440723881,8.2886851,81.25,81.194,0.0777297]
[1771440724373,86.56,81.249,81.175,3.03400678]
[1771440724580,8.2886851,81.23,81.175,3.03400678]
[1771440724783,8.2886851,81.21,81.175,6.78e-06]
[1771440724982,86.54,81.229,81.175,6.78e-06]
[1771440725283,8.2886851,81.23,81.175,6.78e-06]
[1771440725284,11.086,81.22,81.175,6.78e-06]
[1771440725684,86.56,81.219,81.175,6.78e-06]
[1771440725881,86.58,81.218,81.175,6.78e-06]
[1771440726274,11.086,81.22,81.175,6.78e-06]
[1771440726483,86.6,81.219,81.175,6.78e-06]
[1771440726782,8.2886851,81.23,81.175,6.78e-06]
[1771440726989,8.2886851,81.21,81.175,6.78e-06]
[1771440727287,86.6,81.218,81.175,6.78e-06]